[Event "Schack-SM 2024: Mastarklassen"]
[Site "Fortnox Arena, Hejaregatan 5, Vaxjo, Sweden"]
[Date "2024.07.07"]
[Round "9.8"]
[White "Dingertz, Erik"]
[Black "Liden, Tommy"]
[Result "0-1"]
[TimeControl "90 minutes for 40 moves + 30 minutes for the rest of the game + 30 seconds per move from move one."]
[WhiteElo "2081"]
[BlackElo "2123"]

1. d4 {[%clk 01:30:56]} {[%emt 00:00:04]} d5 {[%clk 01:30:55]} {[%emt
00:00:05]} 2. c4 {[%clk 01:31:21]} {[%emt 00:00:05]} e6 {[%clk 01:31:21]}
{[%emt 00:00:04]} 3. Nf3 {[%clk 01:31:47]} {[%emt 00:00:04]} c6 {[%clk
01:31:47]} {[%emt 00:00:04]} 4. g3 {[%clk 01:32:10]} {[%emt 00:00:06]} dxc4
{[%clk 01:31:57]} {[%emt 00:00:20]} 5. Bg2 {[%clk 01:32:28]} {[%emt 00:00:11]}
b5 {[%clk 01:32:15]} {[%emt 00:00:13]} 6. a4 {[%clk 01:32:22]} {[%emt
00:00:35]} Bb7 {[%clk 01:32:25]} {[%emt 00:00:20]} 7. Ne5 {[%clk 01:32:40]}
{[%emt 00:00:12]} Qc8 {[%clk 01:32:20]} {[%emt 00:00:37]} 8. b3 {[%clk
01:29:55]} {[%emt 00:03:13]} c5 {[%clk 01:21:53]} {[%emt 00:10:58]} 9. d5
{[%clk 01:24:19]} {[%emt 00:06:06]} f6 {[%clk 01:21:06]} {[%emt 00:01:16]} 10.
Ng4 {[%clk 01:21:40]} {[%emt 00:03:08]} cxb3 {[%clk 01:15:26]} {[%emt
00:06:10]} 11. Qxb3 {[%clk 01:19:43]} {[%emt 00:02:28]} b4 {[%clk 01:13:19]}
{[%emt 00:02:36]} 12. Nd2 {[%clk 01:05:23]} {[%emt 00:14:50]} exd5 {[%clk
01:01:23]} {[%emt 00:12:26]} 13. Bxd5 {[%clk 01:05:47]} {[%emt 00:00:06]} Bxd5
{[%clk 01:01:31]} {[%emt 00:00:22]} 14. Qxd5 {[%clk 01:06:11]} {[%emt
00:00:06]} Qc6 {[%clk 01:01:40]} {[%emt 00:00:22]} 15. e4 {[%clk 01:06:29]}
{[%emt 00:00:11]} Qxd5 {[%clk 00:59:08]} {[%emt 00:03:02]} 16. exd5 {[%clk
01:06:54]} {[%emt 00:00:05]} Ne7 {[%clk 00:53:47]} {[%emt 00:05:51]} 17. Ne3
{[%clk 01:07:09]} {[%emt 00:00:14]} a5 {[%clk 00:52:59]} {[%emt 00:01:19]} 18.
Ndc4 {[%clk 01:04:28]} {[%emt 00:03:11]} Nc8 {[%clk 00:52:59]} {[%emt
00:00:30]} 19. O-O {[%clk 00:53:54]} {[%emt 00:11:04]} Nd7 {[%clk 00:52:22]}
{[%emt 00:01:07]} 20. Re1 {[%clk 00:49:53]} {[%emt 00:04:32]} Kf7 {[%clk
00:51:35]} {[%emt 00:01:16]} 21. Bb2 {[%clk 00:43:01]} {[%emt 00:07:22]} Ndb6
{[%clk 00:50:26]} {[%emt 00:01:38]} 22. Rad1 {[%clk 00:35:23]} {[%emt
00:08:08]} Bd6 {[%clk 00:46:35]} {[%emt 00:04:22]} 23. Nxb6 {[%clk 00:33:12]}
{[%emt 00:02:42]} Nxb6 {[%clk 00:47:02]} {[%emt 00:00:03]} 24. Nf5 {[%clk
00:33:35]} {[%emt 00:00:07]} Rhd8 {[%clk 00:43:31]} {[%emt 00:04:01]} 25. Re6
{[%clk 00:33:16]} {[%emt 00:00:49]} Nc8 {[%clk 00:39:54]} {[%emt 00:04:07]} 26.
Rc1 {[%clk 00:19:29]} {[%emt 00:14:17]} Bf8 {[%clk 00:39:34]} {[%emt 00:00:48]}
27. Ne3 {[%clk 00:19:46]} {[%emt 00:00:13]} Rb8 {[%clk 00:35:20]} {[%emt
00:04:45]} 28. Ra6 {[%clk 00:19:29]} {[%emt 00:00:45]} Nb6 {[%clk 00:30:58]}
{[%emt 00:04:53]} 29. Rxa5 {[%clk 00:17:00]} {[%emt 00:03:00]} Ra8 {[%clk
00:30:55]} {[%emt 00:00:32]} 30. Rb5 {[%clk 00:13:21]} {[%emt 00:04:10]} Nxa4
{[%clk 00:30:59]} {[%emt 00:00:26]} 31. Rb7+ {[%clk 00:13:30]} {[%emt
00:00:20]} Kg6 {[%clk 00:30:32]} {[%emt 00:00:58]} 32. Rc4 {[%clk 00:12:54]}
{[%emt 00:01:06]} h5 {[%clk 00:28:21]} {[%emt 00:02:40]} 33. Ba1 {[%clk
00:08:09]} {[%emt 00:05:15]} Rdb8 {[%clk 00:25:48]} {[%emt 00:03:02]} 34. Rc7
{[%clk 00:06:20]} {[%emt 00:02:20]} Nb6 {[%clk 00:25:30]} {[%emt 00:00:47]} 35.
Rc1 {[%clk 00:05:47]} {[%emt 00:01:03]} Ra2 {[%clk 00:22:41]} {[%emt 00:03:19]}
36. Ng2 {[%clk 00:04:29]} {[%emt 00:01:47]} Nxd5 {[%clk 00:18:51]} {[%emt
00:04:21]} 37. Rd7 {[%clk 00:04:47]} {[%emt 00:00:13]} Nb6 {[%clk 00:16:29]}
{[%emt 00:02:52]} 38. Rc7 {[%clk 00:05:14]} {[%emt 00:00:03]} Bd6 {[%clk
00:13:27]} {[%emt 00:03:32]} 39. Rc6 {[%clk 00:05:24]} {[%emt 00:00:19]} Nc8
{[%clk 00:12:38]} {[%emt 00:01:19]} 40. Nh4+ {[%clk 00:05:34]} {[%emt
00:00:19]} Kf7 {[%clk 00:11:22]} {[%emt 00:01:47]} 41. Nf5 {[%clk 00:05:44]}
{[%emt 00:00:20]} Bf8 {[%clk 00:10:03]} {[%emt 00:01:49]} 42. Rd1 {[%clk
00:04:24]} {[%emt 00:01:49]} Rba8 {[%clk 00:08:42]} {[%emt 00:01:52]} 43. Bxf6
{[%clk 00:03:22]} {[%emt 00:01:31]} gxf6 {[%clk 00:08:33]} {[%emt 00:00:40]} 44.
Rd7+ {[%clk 00:03:30]} {[%emt 00:00:21]} Ne7 {[%clk 00:07:01]} {[%emt
00:02:02]} 45. Rxc5 {[%clk 00:01:55]} {[%emt 00:02:06]} b3 {[%clk 00:06:07]}
{[%emt 00:01:24]} 46. Rb7 {[%clk 00:00:44]} {[%emt 00:01:42]} b2 {[%clk
00:05:33]} {[%emt 00:01:03]} 47. Kg2 {[%clk 00:01:09]} {[%emt 00:00:04]} R8a7
{[%clk 00:02:33]} {[%emt 00:03:31]} 48. Rb6 {[%clk 00:30:26]} {[%emt 00:01:13]}
Rd7 {[%clk 00:26:48]} {[%emt 00:06:14]} 49. Nxe7 {[%clk 00:24:45]} {[%emt
00:06:12]} Bxe7 {[%clk 00:26:48]} {[%emt 00:00:31]} 50. Rxh5 {[%clk 00:25:10]}
{[%emt 00:00:04]} Kg6 {[%clk 00:25:06]} {[%emt 00:02:12]} 51. Rhb5 {[%clk
00:25:27]} {[%emt 00:00:15]} Ba3 {[%clk 00:23:51]} {[%emt 00:01:44]} 52. h4
{[%clk 00:25:28]} {[%emt 00:00:29]} Ra1 {[%clk 00:23:39]} {[%emt 00:00:42]} 53.
h5+ {[%clk 00:21:14]} {[%emt 00:04:44]} Kg7 {[%clk 00:21:50]} {[%emt 00:02:19]}
54. g4 {[%clk 00:18:23]} {[%emt 00:03:20]} Rdd1 {[%clk 00:13:20]} {[%emt
00:09:00]} 55. Rb7+ {[%clk 00:10:42]} {[%emt 00:08:12]} Kh6 {[%clk 00:13:44]}
{[%emt 00:00:05]} 56. R7b6 {[%clk 00:08:52]} {[%emt 00:02:21]} b1=Q {[%clk
00:13:03]} {[%emt 00:01:10]} 57. g5+ {[%clk 00:09:14]} {[%emt 00:00:08]} Kxh5
{[%clk 00:12:47]} {[%emt 00:00:46]} 58. gxf6+ {[%clk 00:09:38]} {[%emt
00:00:07]} Kg4 {[%clk 00:11:53]} {[%emt 00:01:22]} 0-1

[Event "Schack-SM 2024: Mastarklassen"]
[Site "Fortnox Arena, Hejaregatan 5, Vaxjo, Sweden"]
[Date "2024.07.07"]
[Round "9.9"]
[White "Ostensson, Julia"]
[Black "Granath, Jonas"]
[Result "1/2-1/2"]
[TimeControl "90 minutes for 40 moves + 30 minutes for the rest of the game + 30 seconds per move from move one."]
[WhiteElo "2004"]
[BlackElo "1948"]

1. e4 {[%clk 01:30:57]} {[%emt 00:00:02]} e5 {[%clk 01:30:51]} {[%emt
00:00:09]} 2. Nf3 {[%clk 01:31:22]} {[%emt 00:00:06]} Nc6 {[%clk 01:31:15]}
{[%emt 00:00:06]} 3. Nc3 {[%clk 01:31:25]} {[%emt 00:00:28]} Nf6 {[%clk
01:31:35]} {[%emt 00:00:10]} 4. d4 {[%clk 01:31:50]} {[%emt 00:00:05]} exd4
{[%clk 01:31:58]} {[%emt 00:00:06]} 5. Nxd4 {[%clk 01:32:15]} {[%emt 00:00:05]}
Bb4 {[%clk 01:32:19]} {[%emt 00:00:10]} 6. Nxc6 {[%clk 01:32:39]} {[%emt
00:00:05]} bxc6 {[%clk 01:32:41]} {[%emt 00:00:08]} 7. Bd3 {[%clk 01:33:06]}
{[%emt 00:00:03]} d5 {[%clk 01:32:57]} {[%emt 00:00:14]} 8. exd5 {[%clk
01:33:32]} {[%emt 00:00:05]} O-O {[%clk 01:33:20]} {[%emt 00:00:06]} 9. O-O
{[%clk 01:33:58]} {[%emt 00:00:04]} Bg4 {[%clk 01:33:32]} {[%emt 00:00:19]} 10.
Ne2 {[%clk 01:34:07]} {[%emt 00:00:20]} cxd5 {[%clk 01:33:31]} {[%emt
00:00:30]} 11. h3 {[%clk 01:34:31]} {[%emt 00:00:06]} Bh5 {[%clk 01:33:49]}
{[%emt 00:00:13]} 12. c4 {[%clk 01:34:54]} {[%emt 00:00:08]} dxc4 {[%clk
01:33:02]} {[%emt 00:01:16]} 13. Bxc4 {[%clk 01:33:26]} {[%emt 00:01:57]} Bd6
{[%clk 01:33:25]} {[%emt 00:00:08]} 14. Re1 {[%clk 01:16:36]} {[%emt 00:17:19]}
Re8 {[%clk 01:33:31]} {[%emt 00:00:23]} 15. Bg5 {[%clk 00:54:35]} 1/2-1/2

[Event "Schack-SM 2024: Mastarklassen"]
[Site "Fortnox Arena, Hejaregatan 5, Vaxjo, Sweden"]
[Date "2024.07.07"]
[Round "9.10"]
[White "Carlstrom, Niklas"]
[Black "Willstedt, Lukas"]
[Result "1-0"]
[TimeControl "90 minutes for 40 moves + 30 minutes for the rest of the game + 30 seconds per move from move one."]
[WhiteElo "2100"]
[BlackElo "2082"]

1. e4 {[%clk 01:30:51]} {[%emt 00:00:07]} e6 {[%clk 01:30:59]} {[%emt
00:00:03]} 2. d4 {[%clk 01:31:08]} {[%emt 00:00:13]} d5 {[%clk 01:29:34]}
{[%emt 00:01:56]} 3. exd5 {[%clk 01:31:05]} {[%emt 00:00:32]} exd5 {[%clk
01:29:59]} {[%emt 00:00:05]} 4. Nf3 {[%clk 01:31:11]} {[%emt 00:00:23]} Bd6
{[%clk 01:30:09]} {[%emt 00:00:21]} 5. Bd3 {[%clk 01:30:55]} {[%emt 00:00:46]}
Ne7 {[%clk 01:30:29]} {[%emt 00:00:11]} 6. O-O {[%clk 01:30:38]} {[%emt
00:00:46]} O-O {[%clk 01:30:35]} {[%emt 00:00:25]} 7. h3 {[%clk 01:29:44]}
{[%emt 00:01:21]} Bf5 {[%clk 01:29:43]} {[%emt 00:01:24]} 8. Re1 {[%clk
01:26:09]} {[%emt 00:04:05]} Bxd3 {[%clk 01:28:42]} {[%emt 00:01:32]} 9. Qxd3
{[%clk 01:26:28]} {[%emt 00:00:09]} Ng6 {[%clk 01:29:06]} {[%emt 00:00:07]} 10.
Nc3 {[%clk 01:24:06]} {[%emt 00:02:52]} c6 {[%clk 01:29:17]} {[%emt 00:00:18]}
11. Qf5 {[%clk 01:19:36]} {[%emt 00:05:00]} Qd7 {[%clk 01:22:21]} {[%emt
00:07:28]} 12. Qh5 {[%clk 01:16:35]} {[%emt 00:03:29]} Qc7 {[%clk 01:18:44]}
{[%emt 00:04:08]} 13. Ng5 {[%clk 01:08:31]} {[%emt 00:08:34]} h6 {[%clk
01:18:19]} {[%emt 00:00:56]} 14. Ne6 {[%clk 01:07:34]} {[%emt 00:01:26]} Qe7
{[%clk 01:12:18]} {[%emt 00:06:31]} 15. Bg5 {[%clk 01:05:25]} {[%emt 00:02:39]}
Qd7 {[%clk 01:08:42]} {[%emt 00:04:06]} 16. Nxf8 {[%clk 01:03:00]} {[%emt
00:02:55]} Kxf8 {[%clk 01:08:57]} {[%emt 00:00:14]} 17. Bd2 {[%clk 01:01:16]}
{[%emt 00:02:14]} Na6 {[%clk 01:08:29]} {[%emt 00:00:59]} 18. Ne2 {[%clk
00:56:35]} {[%emt 00:05:10]} Nc7 {[%clk 01:04:12]} {[%emt 00:04:48]} 19. Ng3
{[%clk 00:54:55]} {[%emt 00:02:09]} Nf4 {[%clk 01:03:14]} {[%emt 00:01:28]} 20.
Qf5 {[%clk 00:51:23]} {[%emt 00:04:02]} Nce6 {[%clk 01:01:44]} {[%emt
00:02:02]} 21. Bxf4 {[%clk 00:43:23]} {[%emt 00:08:29]} Bxf4 {[%clk 01:00:29]}
{[%emt 00:01:45]} 22. Rxe6 {[%clk 00:43:02]} {[%emt 00:00:51]} Bxg3 {[%clk
01:00:43]} {[%emt 00:00:16]} 23. Rae1 {[%clk 00:38:59]} {[%emt 00:04:32]} Bd6
{[%clk 00:55:43]} {[%emt 00:05:31]} 24. Rxh6 {[%clk 00:38:07]} {[%emt
00:01:23]} Qxf5 {[%clk 00:56:10]} {[%emt 00:00:02]} 25. Rh8# {[%clk 00:38:29]}
{[%emt 00:00:08]} 1-0

[Event "Schack-SM 2024: Mastarklassen"]
[Site "Fortnox Arena, Hejaregatan 5, Vaxjo, Sweden"]
[Date "2024.07.07"]
[Round "9.11"]
[White "Joensson, Oscar"]
[Black "Sundin, Emanuel"]
[Result "0-1"]
[TimeControl "90 minutes for 40 moves + 30 minutes for the rest of the game + 30 seconds per move from move one."]
[WhiteElo "1989"]
[BlackElo "2165"]

1. d4 {[%clk 01:30:57]} {[%emt 00:00:02]} d5 {[%clk 01:30:54]} {[%emt
00:00:07]} 2. c4 {[%clk 01:31:23]} {[%emt 00:00:05]} e5 {[%clk 01:31:18]}
{[%emt 00:00:05]} 3. dxe5 {[%clk 01:29:20]} {[%emt 00:02:33]} Ne7 {[%clk
01:31:25]} {[%emt 00:00:22]} 4. Nf3 {[%clk 01:06:49]} {[%emt 00:23:01]} Nbc6
{[%clk 01:31:46]} {[%emt 00:00:09]} 5. cxd5 {[%clk 00:29:23]} {[%emt 00:37:57]}
Qxd5 {[%clk 01:31:54]} {[%emt 00:00:22]} 6. Qxd5 {[%clk 00:29:08]} {[%emt
00:00:45]} Nxd5 {[%clk 01:32:22]} {[%emt 00:00:02]} 7. a3 {[%clk 00:28:51]}
{[%emt 00:00:48]} h6 {[%clk 01:31:06]} {[%emt 00:01:45]} 8. e4 {[%clk
00:28:26]} {[%emt 00:00:55]} Nb6 {[%clk 01:31:15]} {[%emt 00:00:20]} 9. Bb5
{[%clk 00:25:09]} {[%emt 00:03:48]} Bd7 {[%clk 01:30:08]} {[%emt 00:01:37]} 10.
Nc3 {[%clk 00:24:05]} {[%emt 00:01:33]} O-O-O {[%clk 01:29:12]} {[%emt
00:01:26]} 11. Be3 {[%clk 00:23:22]} {[%emt 00:01:13]} g5 {[%clk 01:26:40]}
{[%emt 00:03:02]} 12. Rc1 {[%clk 00:12:32]} {[%emt 00:11:20]} Bg7 {[%clk
01:20:04]} {[%emt 00:07:07]} 13. Bxc6 {[%clk 00:08:58]} {[%emt 00:04:04]} Bxc6
{[%clk 01:18:41]} {[%emt 00:01:53]} 14. Nd4 {[%clk 00:09:21]} {[%emt 00:00:06]}
Be8 {[%clk 01:10:15]} {[%emt 00:08:56]} 15. Ncb5 {[%clk 00:03:49]} {[%emt
00:06:02]} Bxe5 {[%clk 01:00:27]} {[%emt 00:10:19]} 16. Rc5 {[%clk 00:03:09]}
{[%emt 00:01:10]} f6 {[%clk 00:43:18]} {[%emt 00:17:39]} 17. Ne6 {[%clk
00:03:03]} {[%emt 00:00:36]} Rd7 {[%clk 00:41:42]} {[%emt 00:02:06]} 18. Nxa7+
{[%clk 00:02:02]} {[%emt 00:01:31]} Kb8 {[%clk 00:42:09]} {[%emt 00:00:03]} 19.
Nb5 {[%clk 00:01:22]} {[%emt 00:01:10]} Na4 {[%clk 00:33:33]} {[%emt 00:09:06]}
20. Rc2 {[%clk 00:01:28]} {[%emt 00:00:23]} Bg6 {[%clk 00:19:25]} {[%emt
00:14:39]} 21. f3 {[%clk 00:01:29]} {[%emt 00:00:28]} Re8 {[%clk 00:19:19]}
{[%emt 00:00:36]} 22. Nc5 {[%clk 00:01:11]} {[%emt 00:00:48]} Nxc5 {[%clk
00:19:28]} {[%emt 00:00:21]} 23. Bxc5 {[%clk 00:00:59]} {[%emt 00:00:43]} f5
{[%clk 00:18:54]} {[%emt 00:01:04]} 24. O-O {[%clk 00:01:06]} {[%emt 00:00:22]}
fxe4 {[%clk 00:18:58]} {[%emt 00:00:27]} 25. fxe4 {[%clk 00:01:32]} {[%emt
00:00:04]} Bxe4 {[%clk 00:19:00]} {[%emt 00:00:28]} 26. Re2 {[%clk 00:01:47]}
{[%emt 00:00:15]} Rd5 {[%clk 00:09:34]} {[%emt 00:09:56]} 27. Ba7+ {[%clk
00:01:35]} {[%emt 00:00:42]} Ka8 {[%clk 00:06:17]} {[%emt 00:03:47]} 28. Rxe4
{[%clk 00:01:58]} {[%emt 00:00:06]} Rxb5 {[%clk 00:06:38]} {[%emt 00:00:09]} 29.
Ra4 {[%clk 00:02:23]} {[%emt 00:00:06]} b6 {[%clk 00:05:18]} {[%emt 00:01:51]}
30. Bxb6+ {[%clk 00:02:46]} {[%emt 00:00:07]} Kb7 {[%clk 00:05:40]} {[%emt
00:00:07]} 31. Bf2 {[%clk 00:01:59]} {[%emt 00:01:17]} Rxb2 {[%clk 00:05:00]}
{[%emt 00:01:09]} 32. Ra7+ {[%clk 00:01:43]} {[%emt 00:00:47]} Kb8 {[%clk
00:04:37]} {[%emt 00:00:53]} 33. Ra6 {[%clk 00:02:07]} {[%emt 00:00:06]} Bd6
{[%clk 00:04:28]} {[%emt 00:00:40]} 34. a4 {[%clk 00:01:01]} {[%emt 00:01:36]}
Ree2 {[%clk 00:04:21]} {[%emt 00:00:35]} 35. Ra5 {[%clk 00:00:41]} {[%emt
00:00:51]} Bf4 {[%clk 00:02:14]} {[%emt 00:02:38]} 36. Rb5+ {[%clk 00:00:33]}
{[%emt 00:00:37]} Rxb5 {[%clk 00:02:32]} {[%emt 00:00:13]} 37. axb5 {[%clk
00:00:58]} {[%emt 00:00:04]} Rb2 {[%clk 00:02:38]} {[%emt 00:00:24]} 38. Bd4
{[%clk 00:00:35]} {[%emt 00:00:53]} Rxb5 {[%clk 00:02:50]} {[%emt 00:00:18]} 39.
g3 {[%clk 00:00:44]} {[%emt 00:00:21]} Be5 {[%clk 00:02:16]} {[%emt 00:01:03]}
40. Rf8+ {[%clk 00:00:47]} {[%emt 00:00:27]} Kb7 {[%clk 00:02:27]} {[%emt
00:00:20]} 41. Be3 {[%clk 00:28:05]} {[%emt 00:03:11]} Kc6 {[%clk 00:23:25]}
{[%emt 00:09:33]} 42. Rg8 {[%clk 00:26:37]} {[%emt 00:01:57]} Kd5 {[%clk
00:22:42]} {[%emt 00:01:14]} 43. h4 {[%clk 00:21:40]} {[%emt 00:05:27]} Rb3
{[%clk 00:11:51]} {[%emt 00:11:21]} 44. Bf2 {[%clk 00:20:05]} {[%emt 00:02:05]}
gxh4 {[%clk 00:05:11]} {[%emt 00:07:10]} 45. gxh4 {[%clk 00:20:25]} {[%emt
00:00:09]} Ke4 {[%clk 00:05:07]} {[%emt 00:00:34]} 46. Kg2 {[%clk 00:18:03]}
{[%emt 00:02:51]} Rb2 {[%clk 00:05:03]} {[%emt 00:00:36]} 47. Rg4+ {[%clk
00:16:09]} {[%emt 00:02:23]} Kf5 {[%clk 00:04:57]} {[%emt 00:00:36]} 48. Rc4
{[%clk 00:16:18]} {[%emt 00:00:21]} h5 {[%clk 00:04:51]} {[%emt 00:00:37]} 49.
Rc6 {[%clk 00:16:20]} {[%emt 00:00:28]} Bd4 {[%clk 00:04:13]} {[%emt 00:01:08]}
50. Rxc7 {[%clk 00:15:06]} {[%emt 00:01:44]} Rxf2+ {[%clk 00:03:40]} {[%emt
00:01:03]} 51. Kg3 {[%clk 00:15:22]} {[%emt 00:00:13]} Ra2 {[%clk 00:03:27]}
{[%emt 00:00:43]} 52. Rf7+ {[%clk 00:14:17]} {[%emt 00:01:35]} Kg6 {[%clk
00:03:29]} {[%emt 00:00:29]} 53. Re7 {[%clk 00:12:38]} {[%emt 00:02:09]} Bf6
{[%clk 00:03:33]} {[%emt 00:00:26]} 54. Re4 {[%clk 00:12:17]} {[%emt 00:00:51]}
Ra3+ {[%clk 00:03:42]} {[%emt 00:00:21]} 55. Kf2 {[%clk 00:11:12]} {[%emt
00:01:34]} Ra2+ {[%clk 00:03:57]} {[%emt 00:00:16]} 56. Kf3 {[%clk 00:11:11]}
{[%emt 00:00:31]} Ra3+ {[%clk 00:04:26]} {[%emt 00:00:01]} 57. Re3 {[%clk
00:11:09]} {[%emt 00:00:32]} Ra1 {[%clk 00:04:18]} {[%emt 00:00:38]} 58. Re4
{[%clk 00:11:32]} {[%emt 00:00:07]} Rg1 {[%clk 00:03:49]} {[%emt 00:00:58]} 59.
Rf4 {[%clk 00:09:56]} {[%emt 00:02:06]} Be5 {[%clk 00:03:31]} {[%emt 00:00:49]}
60. Kf2 {[%clk 00:09:03]} {[%emt 00:01:23]} Rg4 {[%clk 00:03:01]} {[%emt
00:01:00]} 0-1